bitfinex/quotes_SOLUSD_20250617
["timestamp","ask_amount","ask_price","bid_price","bid_amount"]
[1750126324016,5.99920242,151.79,151.72,6.59108884]
[1750126324243,5.99920242,151.79,151.74,5.99920242]
[1750126325115,5.99920242,151.79,151.74,12.58905974]
[1750126325315,18.64964886,151.8,151.76,5.99920242]
[1750126325518,18.64964886,151.83,151.79,5.99920242]
[1750126325756,45.88964886,151.83,151.8,5.99920242]
[1750126326534,5.94,151.84,151.81,5.99920242]
[1750126327056,11.93920242,151.84,151.8,5.99920242]
[1750126327509,5.94,151.84,151.81,6.58718134]
[1750126328730,5.94,151.84,151.81,12.58638376]
[1750126329732,5.94,151.84,151.82,5.99920242]
[1750126330018,5.94,151.84,151.81,12.58638376]
[1750126332140,5.94,151.84,151.82,5.99920242]
[1750126332525,5.94,151.84,151.81,6.58718134]
[1750126332729,5.94,151.84,151.82,5.99920242]
[1750126333236,5.94,151.84,151.83,6.58631364]
[1750126336553,5.94,151.84,151.83,12.58551606]
[1750126337944,5.94,151.84,151.8,23.05648347]
[1750126338122,5.94,151.84,151.82,5.99920242]
[1750126338942,5.94,151.84,151.83,5.99920242]
[1750126339144,5.94,151.84,151.83,12.58551606]
[1750126341627,5.96,151.89,151.83,29.05130016]
[1750126341838,5.96,151.89,151.86,5.99920242]
[1750126342639,5.96,151.89,151.88,5.99920242]
[1750126343138,5.96,151.89,151.87,5.99920242]
[1750126344442,5.96,151.89,151.86,5.99920242]
[1750126345445,5.96,151.89,151.83,23.05209774]
[1750126345446,5.96,151.89,151.87,5.99920242]
[1750126346842,5.96,151.89,151.88,6.58414537]
[1750126347833,5.96,151.89,151.88,12.58334779]
[1750126348341,5.96,151.89,151.88,6.58414537]
[1750126350261,5.96,151.89,151.88,12.58334779]
[1750126351138,5.96,151.89,151.88,6.58414537]
[1750126351336,5.96,151.89,151.82,26.0]
[1750126351337,11.95920242,151.89,151.82,42.4662473]
[1750126351539,5.99920242,151.87,151.83,6.58631364]
[1750126352340,5.99920242,151.87,151.83,12.58551606]
[1750126352738,18.64964886,151.88,151.84,5.99920242]
[1750126352939,33.18,151.89,151.87,5.99920242]
[1750126352940,5.96,151.89,151.87,5.99920242]
[1750126353960,5.96,151.89,151.83,23.05209774]
[1750126354154,5.96,151.89,151.88,5.99920242]
[1750126354355,5.96,151.89,151.87,5.99920242]
[1750126354965,5.96,151.89,151.88,6.58414537]
[1750126357746,5.96,151.89,151.88,12.58334779]
[1750126360476,13.48940242,151.94,151.88,12.58334779]
[1750126360647,13.48940242,151.94,151.89,5.99920242]
[1750126361165,5.99920242,151.93,151.89,5.99920242]
[1750126361949,5.99920242,151.92,151.88,12.58334779]
[1750126362348,24.64885128,151.93,151.88,12.58334779]
[1750126362552,5.99920242,151.92,151.88,12.58334779]
[1750126363159,24.64885128,151.93,151.88,12.58334779]
[1750126365377,5.99920242,151.89,151.82,6.30950477]
[1750126365673,5.99920242,151.84,151.79,6.58804927]
[1750126365852,5.99920242,151.84,151.79,12.58725169]
[1750126366048,5.94,151.85,151.79,12.58725169]
[1750126366049,5.94,151.85,151.83,5.99920242]
[1750126366775,5.94,151.85,151.82,5.99920242]
[1750126367272,24.64885128,151.87,151.82,5.99920242]
[1750126367575,57.80885128,151.87,151.82,5.99920242]
[1750126367743,33.16,151.87,151.82,5.99920242]
[1750126367948,33.16,151.87,151.84,5.99920242]
[1750126368764,33.16,151.87,151.84,12.58475924]
[1750126369271,5.94,151.87,151.85,5.99920242]
[1750126369572,5.94,151.87,151.86,5.99920242]
[1750126370357,5.94,151.87,151.85,5.99920242]
[1750126371063,5.94,151.87,151.86,6.58501251]
[1750126373361,5.94,151.87,151.85,6.58529606]
[1750126373679,30.58885128,151.87,151.82,5.99920242]
[1750126373880,27.2,151.86,151.82,5.99920242]
[1750126374576,32.1179734,151.86,151.82,5.99920242]
[1750126374889,5.99920242,151.83,151.79,5.99920242]
[1750126375382,25.23518371,151.85,151.79,5.99920242]
[1750126375383,5.99920242,151.84,151.79,5.99920242]
[1750126375571,27.2,151.83,151.79,5.99920242]
[1750126376082,38.11764491,151.83,151.78,5.99920242]
[1750126376301,38.11637689,151.83,151.78,5.99920242]
[1750126376586,5.99920242,151.82,151.78,5.99920242]
[1750126377080,24.64885128,151.81,151.76,12.58840805]
[1750126377457,33.14,151.8,151.76,12.58840805]
[1750126378265,39.13920242,151.8,151.76,6.58920563]
[1750126378802,24.64885128,151.79,151.75,6.58964187]
[1750126378963,24.64885128,151.79,151.7,6.59195781]
[1750126378964,5.99920242,151.76,151.7,6.59195781]
[1750126379165,5.99920242,151.76,151.69,5.99920242]
[1750126379166,5.99920242,151.74,151.69,5.99920242]
[1750126380287,5.99920242,151.73,151.69,6.59198122]
[1750126380871,11.93920242,151.73,151.69,6.59198122]
[1750126381065,11.93920242,151.73,151.69,12.59118364]
[1750126381885,4.9126853,151.75,151.72,5.99920242]
[1750126382187,5.94,151.76,151.69,23.07296216]
[1750126382363,5.94,151.76,151.73,5.99920242]
[1750126383697,5.94,151.76,151.73,12.58946139]
[1750126383906,5.94,151.76,151.74,5.99920242]
[1750126384391,5.94,151.76,151.75,5.99920242]
[1750126384589,6.1392838,151.81,151.75,5.99920242]
[1750126384790,6.1392838,151.81,151.73,23.06689509]
[1750126384791,5.99920242,151.77,151.73,12.58946139]
[1750126385177,5.99920242,151.76,151.72,12.59027582]
[1750126385480,5.99920242,151.74,151.71,6.59143426]
[1750126385680,5.99920242,151.75,151.71,6.59143426]
[1750126386071,18.64964886,151.76,151.71,12.59063668]
[1750126386278,24.64885128,151.76,151.71,12.59063668]
[1750126386677,24.64885128,151.76,151.72,5.99920242]
[1750126386871,24.64885128,151.76,151.71,6.59143426]
[1750126386872,27.68099336,151.76,151.71,15.62277876]
[1750126387092,27.68099336,151.76,151.71,6.59143426]
[1750126387290,9.0313445,151.72,151.68,6.592827]
[1750126387491,9.0313445,151.71,151.68,6.592827]
[1750126387693,14.9713445,151.72,151.68,6.592827]
[1750126388291,9.0313445,151.71,151.67,15.62454117]
[1750126388589,14.9713445,151.72,151.68,9.0313445]
[1750126389899,14.9713445,151.72,151.68,15.624169]
[1750126390801,5.94,151.72,151.68,15.624169]
[1750126390997,5.94,151.72,151.7,9.0313445]
[1750126391383,5.94,151.72,151.69,9.0313445]
[1750126391595,5.94,151.72,151.7,9.0313445]
[1750126392200,5.94,151.72,151.7,15.62297267]
[1750126393089,5.94,151.72,151.66,23.07775136]
[1750126393275,5.94,151.72,151.7,9.0313445]
[1750126394299,5.94,151.72,151.69,9.0313445]
[1750126395078,5.94,151.72,151.7,6.59195781]
[1750126395289,5.94,151.72,151.7,15.62330231]
[1750126398596,5.94,151.72,151.71,9.0313445]
[1750126399804,5.94,151.72,151.71,15.6228678]
[1750126400381,5.94,151.72,151.71,6.5915233]
[1750126400584,5.94,151.72,151.71,15.6228678]
[1750126400998,11.65125738,151.74,151.71,15.6228678]
[1750126402504,11.65125738,151.74,151.72,9.0313445]
[1750126403283,11.65125738,151.74,151.71,15.6228678]
[1750126403600,11.65125738,151.74,151.72,9.0313445]
[1750126403806,11.65125738,151.74,151.73,9.0313445]
[1750126405890,11.65125738,151.74,151.73,15.62199895]
[1750126408892,11.65125738,151.74,151.73,6.01992172]
[1750126410590,11.65125738,151.74,151.68,23.07489451]
[1750126410815,6.01992172,151.72,151.68,12.61274872]
[1750126411202,33.11992172,151.73,151.69,6.01992172]
[1750126411515,27.1,151.73,151.71,6.01992172]
[1750126412891,27.1,151.73,151.71,12.61126195]
[1750126413720,11.65125738,151.74,151.71,12.61126195]
[1750126414021,11.65125738,151.74,151.72,6.01992172]
[1750126414315,11.65125738,151.74,151.73,6.01992172]
[1750126414498,11.65125738,151.74,151.71,6.59134023]
[1750126414697,11.65125738,151.74,151.71,12.61126195]
[1750126416199,11.65125738,151.74,151.71,6.59134023]
[1750126416915,11.65125738,151.74,151.71,6.01992172]
[1750126418508,11.65125738,151.74,151.71,12.61107275]
[1750126418896,11.65125738,151.74,151.71,6.59115103]
[1750126419121,11.65125738,151.74,151.71,12.61107275]
[1750126421013,11.65125738,151.74,151.72,6.01992172]
[1750126421813,11.65125738,151.74,151.73,6.01992172]
[1750126422218,5.94,151.76,151.73,6.01992172]
[1750126422815,5.94,151.76,151.73,12.61024775]
[1750126423018,5.94,151.76,151.73,6.59032603]
[1750126423207,4.92907021,151.75,151.73,6.59032603]
[1750126423519,5.94,151.76,151.73,6.59032603]
[1750126424413,5.94,151.76,151.73,12.61024775]
[1750126426998,5.94,151.76,151.74,6.01992172]
[1750126427400,5.94,151.76,151.73,12.61024775]
[1750126430613,5.94,151.76,151.75,6.01992172]
[1750126431024,5.94,151.76,151.75,12.60970755]
[1750126431424,5.88,151.81,151.75,29.08417212]
[1750126431626,5.88,151.81,151.8,6.01992172]
[1750126431824,10.61096965,151.83,151.8,6.01992172]
[1750126432033,1.5333,151.85,151.82,6.01992172]
[1750126432207,58.08,151.86,151.77,27.5597]
[1750126432208,85.18,151.86,151.84,6.01992172]
[1750126433110,58.08,151.86,151.84,12.60573748]
[1750126433308,18.64964886,151.85,151.81,12.60710306]
[1750126433719,18.64964886,151.85,151.81,6.58718134]
[1750126433914,18.64964886,151.85,151.82,6.01992172]
[1750126435422,18.64964886,151.85,151.82,12.60661147]
[1750126435813,58.08,151.86,151.83,6.01992172]
[1750126436330,85.16,151.86,151.83,6.01992172]
[1750126437428,58.08,151.86,151.83,6.01992172]
[1750126437627,85.16,151.86,151.83,12.60618231]
[1750126438924,5.88,151.86,151.84,6.01992172]
[1750126439810,5.88,151.86,151.85,12.60536788]
[1750126441338,5.88,151.86,151.77,1.5597]
[1750126441339,18.64964886,151.85,151.8,6.58761528]
[1750126441513,6.01992172,151.81,151.77,6.01992172]
[1750126441833,33.09992172,151.8,151.76,6.01992172]
[1750126442032,6.01992172,151.77,151.73,6.59065445]
[1750126442335,6.01992172,151.76,151.73,6.59065445]
[1750126442913,6.01992172,151.76,151.72,6.59097535]
[1750126443531,6.01992172,151.75,151.72,6.59097535]
[1750126443727,24.66957058,151.76,151.72,6.59097535]
[1750126443933,24.66957058,151.76,151.72,12.61089707]
[1750126444119,24.66957058,151.76,151.72,6.59097535]
[1750126445436,24.66957058,151.76,151.72,12.61089707]
[1750126445637,18.64964886,151.76,151.72,12.61089707]
[1750126445808,27.08,151.77,151.73,6.01992172]
[1750126446012,33.09992172,151.77,151.72,12.61089707]
[1750126446412,38.97992172,151.77,151.72,12.61089707]
[1750126447826,24.66957058,151.76,151.72,6.59097535]
[1750126448041,6.01992172,151.75,151.72,6.59097535]
[1750126448240,18.64964886,151.79,151.74,6.01992172]
[1750126448425,18.64964886,151.79,151.72,23.06869746]
[1750126448426,51.60964886,151.79,151.76,6.01992172]
[1750126448736,51.60964886,151.79,151.75,6.01992172]
[1750126450130,57.62957058,151.79,151.76,6.5893516]
[1750126451140,51.60964886,151.79,151.76,6.5893516]
[1750126451342,57.62957058,151.79,151.71,26.0]
[1750126451541,6.01992172,151.78,151.73,6.01992172]
[1750126451746,57.62957058,151.79,151.74,6.01992172]
[1750126452236,18.64964886,151.77,151.71,26.0]
[1750126452548,18.64964886,151.76,151.72,6.01992172]
[1750126453334,18.64964886,151.76,151.73,6.59065445]
[1750126454848,18.64964886,151.76,151.73,6.01992172]
[1750126455842,18.64964886,151.78,151.7,16.47989452]
[1750126456162,18.64964886,151.78,151.74,6.01992172]
[1750126456944,18.64964886,151.78,151.75,6.58978583]
[1750126457355,51.74957058,151.78,151.75,6.58978583]
[1750126459832,45.72964886,151.78,151.75,6.58978583]
[1750126460556,27.08,151.78,151.75,12.60970755]
[1750126460856,32.96,151.79,151.76,6.01992172]
[1750126461649,5.88,151.79,151.76,6.01992172]
[1750126462862,5.88,151.79,151.77,6.58891744]
[1750126465044,5.88,151.79,151.77,12.60883916]
[1750126466252,5.88,151.79,151.78,6.01992172]
[1750126466436,1.5744,151.83,151.78,6.01992172]
[1750126466763,7.4544,151.83,151.8,6.01992172]
[1750126467255,7.4544,151.83,151.81,6.58718134]
[1750126468138,5.88,151.83,151.81,6.58718134]
[1750126468342,5.88,151.83,151.81,12.60710306]
[1750126469145,5.88,151.83,151.82,6.01992172]
[1750126469451,5.88,151.83,151.82,12.60666918]
[1750126469657,51.58964886,151.86,151.82,12.60666918]
[1750126470044,24.50964886,151.86,151.82,12.60666918]
[1750126470849,30.52957058,151.86,151.82,6.58674746]
[1750126471859,57.60957058,151.86,151.82,6.58674746]
[1750126472440,51.58964886,151.86,151.82,12.60666918]
[1750126473162,24.50964886,151.86,151.82,12.60666918]
[1750126473342,30.52957058,151.86,151.82,12.60666918]
[1750126473543,24.50964886,151.86,151.82,12.60666918]
[1750126475049,30.52957058,151.86,151.82,12.60666918]
[1750126478162,51.56964886,151.86,151.82,12.60666918]
[1750126479573,51.56964886,151.86,151.82,6.01992172]
[1750126480163,57.58957058,151.86,151.82,6.01992172]
[1750126480358,51.56964886,151.86,151.82,6.01992172]
[1750126481677,51.56964886,151.86,151.82,12.60625768]
[1750126483164,24.66957058,151.84,151.8,12.60712034]
[1750126483363,45.70964886,151.84,151.8,12.60712034]
[1750126483771,27.06,151.84,151.82,6.01992172]
[1750126484281,18.64964886,151.85,151.82,6.01992172]
[1750126484580,32.92,151.86,151.8,6.58719862]
[1750126484581,5.86,151.86,151.83,6.01992172]
[1750126485283,5.86,151.86,151.8,16.4690382]
[1750126485459,5.86,151.86,151.82,6.01992172]
[1750126488279,5.86,151.86,151.82,12.60634309]
[1750126488978,11.87992172,151.86,151.82,6.58642137]
[1750126489479,38.93992172,151.86,151.82,6.58642137]
[1750126490171,32.92,151.86,151.82,6.01992172]
[1750126492077,32.92,151.86,151.82,12.6064093]
[1750126492276,32.92,151.86,151.83,6.01992172]
[1750126492869,32.92,151.86,151.82,12.6064093]
[1750126493995,32.92,151.86,151.82,6.01992172]
[1750126494294,24.66957058,151.85,151.8,6.01992172]
[1750126495986,18.64964886,151.85,151.81,6.01992172]
[1750126497190,32.92,151.86,151.82,6.01992172]
[1750126498088,32.92,151.86,151.83,6.58631364]
[1750126498393,11.87992172,151.86,151.81,12.60710306]
[1750126499493,24.66957058,151.85,151.81,6.58718134]
[1750126500372,18.64964886,151.83,151.79,12.60787128]
[1750126500679,24.66957058,151.81,151.75,6.58978583]
[1750126500870,6.5821,151.83,151.78,6.01992172]
[1750126501075,51.72957058,151.84,151.79,6.01992172]
[1750126501496,18.64964886,151.81,151.77,6.01992172]
[1750126501667,24.66957058,151.81,151.76,6.01992172]
[1750126501868,51.72957058,151.81,151.76,6.01992172]
[1750126502307,51.72957058,151.81,151.77,6.58891744]
[1750126502865,51.72957058,151.81,151.77,12.60883916]
[1750126504397,51.72957058,151.81,151.76,6.01992172]
[1750126504993,51.72957058,151.81,151.75,23.0642504]
[1750126505195,51.72957058,151.81,151.76,6.01992172]
[1750126506892,51.72957058,151.81,151.77,6.58891744]
[1750126508388,51.72957058,151.81,151.76,6.01992172]
[1750126508594,24.66957058,151.79,151.73,6.59065445]
[1750126508916,38.93992172,151.78,151.73,12.61057617]
[1750126509195,24.66957058,151.77,151.73,6.59065445]
[1750126509403,24.66957058,151.77,151.72,12.61088589]
[1750126509892,6.01992172,151.76,151.72,6.59096417]
[1750126511777,6.01992172,151.76,151.71,12.61131948]
[1750126512090,32.92,151.78,151.74,6.01992172]
[1750126512091,5.86,151.78,151.74,6.01992172]
[1750126512974,5.86,151.78,151.74,12.61006708]
[1750126513171,6.01992172,151.76,151.72,6.01992172]
[1750126514281,6.01992172,151.76,151.72,12.61078235]
[1750126517409,24.66957058,151.77,151.72,12.61078235]
[1750126518005,18.64964886,151.77,151.74,6.01992172]
[1750126519153,24.66957058,151.77,151.72,12.61078235]
[1750126519685,18.64964886,151.77,151.73,6.01992172]
[1750126519897,5.86,151.78,151.76,6.01992172]
[1750126522326,5.86,151.78,151.77,6.01992172]
[1750126522618,18.64964886,151.82,151.77,6.01992172]
[1750126522810,18.64964886,151.82,151.8,6.01992172]
[1750126523390,18.64964886,151.82,151.79,6.01992172]
[1750126524499,18.64964886,151.82,151.78,6.58833605]
[1750126524700,24.66957058,151.82,151.77,12.60872541]
[1750126524905,18.64964886,151.82,151.78,6.01992172]
[1750126525724,5.86,151.83,151.79,6.01992172]
[1750126526537,1.6216,151.86,151.82,6.01992172]
[1750126526829,24.50964886,151.87,151.83,6.01992172]
[1750126527006,24.50964886,151.87,151.84,6.01992172]
[1750126527209,24.50964886,151.87,151.8,23.05665348]
[1750126527210,24.50964886,151.87,151.83,6.01992172]
[1750126528337,18.64964886,151.85,151.81,6.01992172]
[1750126528524,18.64964886,151.85,151.81,12.60698608]
[1750126529832,24.66957058,151.85,151.81,6.58706436]
[1750126530032,24.66957058,151.85,151.8,12.60745052]
[1750126530240,6.01992172,151.84,151.79,6.01992172]
[1750126530437,58.29512191,151.85,151.8,6.01992172]
[1750126531354,51.70957058,151.85,151.8,6.01992172]
[1750126531639,45.68964886,151.85,151.81,6.01992172]
[1750126532012,18.64964886,151.85,151.82,6.01992172]
[1750126533326,11.87992172,151.87,151.82,6.01992172]
[1750126533664,5.84,151.92,151.86,6.01992172]
[1750126533816,5.84,151.92,151.81,49.05483205]
[1750126533817,4.90385437,151.93,151.9,6.01992172]
[1750126534153,47.07311839,151.94,151.88,6.58401781]
[1750126534327,18.64964886,151.92,151.89,6.01992172]
[1750126534937,18.64964886,151.92,151.86,6.58501251]
[1750126535242,18.64964886,151.92,151.84,32.01992172]
[1750126535243,6.01992172,151.89,151.85,6.01992172]
[1750126535626,24.66957058,151.9,151.85,6.01992172]
[1750126536125,24.66957058,151.9,151.85,12.60520198]
[1750126538122,31.25291538,151.9,151.85,6.01992172]
[1750126538335,6.01992172,151.89,151.85,6.01992172]
[1750126540344,45.68964886,151.88,151.82,6.58667809]
[1750126540551,5.84,151.87,151.83,6.01992172]
[1750126541134,5.84,151.87,151.84,6.01992172]
[1750126541847,5.84,151.87,151.83,12.60598155]
[1750126542041,18.64964886,151.86,151.82,12.60658856]
[1750126542249,18.64964886,151.86,151.66,1.5752]
[1750126542250,18.64964886,151.82,151.66,1.5752]
[1750126542440,18.64964886,151.74,151.68,30.0]
[1750126542766,6.01992172,151.75,151.68,30.0]
[1750126542767,6.01992172,151.72,151.68,6.01992172]
[1750126543253,26.28432314,151.76,151.69,6.01992172]
[1750126543562,5.84,151.72,151.69,6.01992172]
[1750126544931,5.84,151.72,151.68,6.01992172]
[1750126545664,6.01992172,151.72,151.69,6.59239237]
[1750126545821,39.03992172,151.72,151.69,6.59239237]
[1750126546363,33.02,151.72,151.69,6.59239237]
[1750126547830,39.03992172,151.72,151.69,6.59239237]
[1750126549244,33.02,151.72,151.69,6.59239237]
[1750126549438,18.64964886,151.75,151.69,6.59239237]
[1750126549640,39.01992172,151.74,151.7,6.01992172]
[1750126549938,5.84,151.78,151.73,6.01992172]
[1750126550252,5.84,151.78,151.75,6.01992172]
[1750126550637,5.84,151.78,151.72,26.0]
[1750126550638,5.84,151.78,151.74,6.01992172]
[1750126550841,5.84,151.78,151.75,6.58978583]
[1750126551358,5.84,151.79,151.75,12.60970755]
[1750126551550,11.85992172,151.79,151.75,12.60970755]
[1750126551749,5.84,151.79,151.75,12.60970755]
[1750126554462,6.01992172,151.78,151.75,6.58978583]
[1750126554835,5.84,151.78,151.75,6.58978583]
[1750126555165,5.84,151.78,151.75,12.60970755]
[1750126555667,11.85992172,151.78,151.74,6.01992172]
[1750126556261,11.85992172,151.78,151.74,12.6099112]
[1750126558768,5.84,151.77,151.74,12.6099112]
[1750126559246,11.85992172,151.77,151.72,6.01992172]
[1750126559441,5.84,151.77,151.72,6.01992172]
[1750126559661,11.85992172,151.77,151.73,6.01992172]
[1750126561068,11.85992172,151.77,151.73,12.61029825]
[1750126562240,11.85992172,151.77,151.72,12.61087161]
[1750126562241,6.01992172,151.76,151.72,12.61087161]
[1750126562772,11.85992172,151.77,151.72,12.61087161]
[1750126562949,11.85992172,151.77,151.73,6.01992172]
[1750126563678,5.84,151.77,151.73,12.61036581]
[1750126563849,5.84,151.77,151.73,6.59044409]
[1750126563850,11.85992172,151.77,151.73,6.59044409]
[1750126564851,0.28432314,151.8,151.75,6.01992172]
[1750126565176,5.88,151.8,151.77,6.01992172]
[1750126565677,5.88,151.8,151.77,12.60848658]
[1750126566772,5.88,151.8,151.77,6.58856486]
[1750126566956,11.89992172,151.8,151.77,6.58856486]
[1750126567979,5.88,151.8,151.77,6.58856486]
[1750126568172,5.88,151.8,151.77,12.60848658]
[1750126568368,5.38,151.8,151.77,12.60848658]
[1750126568577,5.38,151.8,151.77,6.58856486]
[1750126569057,5.38,151.8,151.77,12.60848658]
[1750126571378,5.38,151.8,151.76,6.01992172]
[1750126571683,11.39992172,151.8,151.76,6.01992172]
[1750126572272,11.39992172,151.8,151.75,16.47427987]
[1750126572463,11.39992172,151.8,151.76,6.01992172]
[1750126572671,5.38,151.8,151.76,6.01992172]
[1750126572876,5.38,151.8,151.77,6.01992172]
[1750126573061,5.38,151.8,151.79,6.01992172]
[1750126573379,5.38,151.8,151.78,12.6079762]
[1750126573887,5.38,151.8,151.78,6.58805448]
[1750126574477,6.01992172,151.81,151.78,6.58805448]
[1750126574689,11.89992172,151.81,151.78,6.58805448]
[1750126575180,5.88,151.81,151.78,6.58805448]
[1750126576284,11.89992172,151.81,151.78,6.58805448]
[1750126577283,6.58631509,151.83,151.78,6.58805448]
[1750126577461,11.89992172,151.81,151.78,6.58805448]
[1750126577864,5.88,151.81,151.78,6.58805448]
[1750126578080,11.89992172,151.81,151.78,6.58805448]
[1750126578590,11.89992172,151.81,151.73,0.42648471]
[1750126578759,11.89992172,151.81,151.76,6.01992172]
[1750126579789,11.89992172,151.81,151.77,6.58891744]
[1750126580787,5.88,151.81,151.77,12.60883916]
[1750126582082,5.88,151.81,151.78,6.01992172]
[1750126582483,5.88,151.81,151.77,6.01992172]
[1750126583188,5.88,151.81,151.78,6.58848333]
[1750126584687,11.89992172,151.81,151.77,12.60877658]
[1750126584868,11.89992172,151.81,151.77,6.58885486]
[1750126585770,18.933972,151.84,151.8,6.01992172]
[1750126585771,18.64964886,151.84,151.8,6.01992172]
[1750126585973,24.52964886,151.84,151.8,6.01992172]
[1750126586490,12.14140763,151.89,151.83,6.01992172]
[1750126586672,5.88,151.87,151.84,6.01992172]
[1750126587083,5.88,151.87,151.84,6.58587987]
[1750126587766,5.88,151.87,151.84,12.60580159]
[1750126588072,8.16853147,151.91,151.84,12.60580159]
[1750126588073,1.5854,151.91,151.86,6.01992172]
[1750126588269,5.88,151.9,151.86,6.01992172]
[1750126588468,18.64964886,151.9,151.86,6.01992172]
[1750126589293,18.64964886,151.9,151.86,12.60459496]
[1750126589497,18.64964886,151.9,151.81,34.43986461]
[1750126589498,6.01992172,151.87,151.83,6.58631364]
[1750126589675,6.01992172,151.86,151.83,6.58631364]
[1750126590187,6.01992172,151.86,151.82,6.5867432]
[1750126590390,6.01992172,151.84,151.81,6.58704559]
[1750126590780,6.01992172,151.83,151.78,6.01992172]
[1750126591085,6.01992172,151.83,151.78,12.60840505]
[1750126591594,6.01992172,151.81,151.78,6.58848333]
[1750126592179,6.01992172,151.82,151.78,12.60840505]
[1750126592382,6.01992172,151.83,151.78,12.60840505]
[1750126592704,6.01992172,151.82,151.78,12.60840505]
[1750126593005,6.01992172,151.81,151.78,6.58848333]
[1750126594068,6.01992172,151.8,151.77,6.58879506]
[1750126594271,6.01992172,151.8,151.76,6.58924739]
[1750126594471,6.01992172,151.8,151.75,32.01992172]
[1750126594472,6.01992172,151.78,151.74,12.6097137]
[1750126595173,24.66957058,151.79,151.74,12.6097137]
[1750126595690,18.64964886,151.79,151.75,6.01992172]
[1750126595895,6.58686036,151.82,151.77,6.01992172]
[1750126595896,24.66957058,151.82,151.77,6.01992172]
[1750126596198,51.74957058,151.82,151.77,6.01992172]
[1750126597395,6.01992172,151.81,151.78,6.58848333]
[1750126599895,45.72964886,151.82,151.78,6.58848333]
[1750126600075,51.74957058,151.82,151.78,6.01992172]
[1750126600276,51.74957058,151.82,151.77,6.01992172]
[1750126600481,45.72964886,151.82,151.77,6.01992172]
[1750126600682,6.01992172,151.82,151.78,6.01992172]
[1750126601680,6.01992172,151.82,151.74,16.47555028]
[1750126601681,6.01992172,151.81,151.77,6.01992172]
[1750126601997,6.01992172,151.81,151.78,6.58848333]
[1750126602383,6.01992172,151.82,151.78,6.58848333]
[1750126605505,51.72957058,151.83,151.78,12.60840505]
[1750126605807,24.66957058,151.83,151.78,12.60840505]
[1750126606603,11.89992172,151.84,151.8,6.01992172]
[1750126606791,5.88,151.84,151.8,6.01992172]
[1750126607392,4.91991225,151.85,151.81,6.01992172]
[1750126608109,57.58957058,151.86,151.81,6.01992172]
[1750126609178,30.52957058,151.86,151.82,6.58674746]
[1750126609394,62.50913819,151.86,151.82,6.58674746]
[1750126609605,57.58957058,151.86,151.82,6.58674746]
[1750126610004,30.52957058,151.86,151.82,6.58674746]
[1750126610187,57.58957058,151.86,151.82,6.58674746]
[1750126610585,5.86,151.86,151.83,6.01992172]
[1750126610809,5.86,151.89,151.85,6.01992172]
[1750126610992,5.86,151.89,151.86,6.01992172]
[1750126611507,5.86,151.89,151.85,6.01992172]
[1750126612609,5.86,151.89,151.87,6.58457891]
[1750126613210,5.86,151.89,151.87,12.60450063]
[1750126613408,15.70560577,151.92,151.88,6.01992172]
[1750126613594,11.98148591,152.01,151.91,12.03984344]
[1750126613794,4.91080178,152.0,151.98,6.01992172]
[1750126614018,6.01992172,151.99,151.95,6.01992172]
[1750126614182,6.01992172,151.98,151.94,6.01992172]
[1750126614602,6.01992172,151.98,151.94,12.60121009]
[1750126614906,6.01992172,151.98,151.9,48.49408614]
[1750126615089,6.01992172,151.97,151.93,6.01992172]
[1750126615286,6.01992172,151.98,151.94,6.01992172]
[1750126615705,6.01992172,151.99,151.94,6.01992172]
[1750126615994,6.01992172,151.99,151.95,6.01992172]
[1750126616602,18.64964886,151.99,151.95,6.01992172]
[1750126617097,18.64964886,151.99,151.95,12.60101564]
[1750126617712,18.64964886,151.99,151.95,6.01992172]
[1750126618993,24.66957058,151.99,151.95,6.01992172]
[1750126619323,6.01992172,151.98,151.94,6.01992172]
[1750126619696,24.66957058,151.99,151.94,6.01992172]
[1750126621798,24.66957058,151.99,151.94,12.60142462]
[1750126622121,24.66957058,151.99,151.86,81.07092337]
[1750126622122,6.01992172,151.96,151.88,17.97124646]
[1750126622327,6.01992172,151.96,151.91,6.01992172]
[1750126623321,33.03992172,151.97,151.92,12.60202815]
[1750126624327,33.03992172,151.97,151.93,6.01992172]
[1750126624505,6.01992172,151.96,151.9,6.58327847]
[1750126624708,6.01992172,151.96,151.91,6.01992172]
[1750126625621,33.03992172,151.97,151.92,6.01992172]
[1750126626422,6.01992172,151.96,151.92,6.58222522]
[1750126626630,26.28432314,152.02,151.94,6.01992172]
[1750126626811,19.764799,152.09,152.0,6.01992172]
[1750126627118,6.01992172,152.07,151.98,0.42648471]
[1750126627320,6.01992172,152.05,151.94,12.05125796]